bitfinex/quotes_ETHUSD_20240817
["timestamp","ask_amount","ask_price","bid_price","bid_amount"]
[1723882675195,1.332,2601.2,2601.0,3.84467]
[1723882675340,1.332,2601.2,2600.9,3.84472]
[1723882675844,1.332,2601.0,2600.7,3.84504]
[1723882676288,1.332,2601.0,2600.1,2.2918]
[1723882676289,1.332,2600.8,2600.1,2.2918]
[1723882676486,1.332,2600.6,2600.2,3.84583]
[1723882676962,0.04686248,2600.5,2600.1,3.84599]
[1723882677146,0.04686248,2600.5,2600.2,3.84585]
[1723882677747,0.04686248,2600.5,2600.0,7.69206]
[1723882677998,1.332,2600.4,2600.0,7.69208]
[1723882678364,0.04681229,2600.3,2600.1,3.84599]
[1723882680390,19.30885455,2600.6,2600.1,3.84599]
[1723882680605,0.04668143,2600.2,2600.1,3.84599]
[1723882680768,19.30885455,2600.6,2600.2,3.8458]
[1723882681308,2.3309,2600.6,2600.1,3.84597]
[1723882681504,2.67688545,2600.5,2600.1,3.84597]
[1723882681807,2.3309,2600.6,2600.1,3.84597]
[1723882682401,2.3309,2600.6,2600.1,7.69187]
[1723882682705,6.17618,2600.6,2599.9,3.8462]
[1723882682852,5.20905,2600.5,2599.9,3.84619]
[1723882683445,3.84562,2600.4,2599.9,3.84619]
[1723882683776,0.905467,2600.3,2599.8,3.84641]
[1723882683975,0.905467,2600.3,2599.9,3.84626]
[1723882684178,9.05456,2600.5,2599.9,3.84626]
[1723882684958,3.84556,2600.4,2599.9,3.84626]
[1723882685567,20.82351455,2600.4,2599.9,3.84626]
[1723882685785,2.60325646,2600.3,2599.7,7.69292]
[1723882685987,2.60325646,2600.3,2599.8,3.84643]
[1723882691520,19.58121101,2600.3,2599.8,3.84643]
[1723882694346,19.30885455,2600.2,2599.5,3.84681]
[1723882694558,3.84623,2600.0,2599.5,3.84681]
[1723882694859,3.84623,2600.0,2599.5,7.69362]
[1723882695169,16.97795455,2600.1,2599.5,3.84676]
[1723882695369,0.04650853,2599.9,2599.5,7.69356]
[1723882695661,0.04650922,2600.0,2599.5,7.69356]
[1723882695964,0.04650853,2599.9,2599.5,7.69356]
[1723882696339,23.37370172,2600.1,2599.5,3.84676]
[1723882696559,3.18932188,2600.0,2599.5,3.84676]
[1723882696838,3.23579854,2600.0,2599.5,3.84676]
[1723882697545,20.21375309,2600.0,2599.5,3.84676]
[1723882698435,24.05993309,2600.0,2599.5,3.84676]
[1723882698636,2.3229,2599.9,2599.4,3.84704]
[1723882699068,0.04647527,2599.8,2599.4,3.84704]
[1723882699268,0.04647527,2599.8,2599.3,3.8471]
[1723882699744,0.04647527,2599.8,2599.3,7.69421]
[1723882699948,0.04647527,2599.8,2599.3,3.8471]
[1723882700156,0.04647527,2599.8,2599.3,7.69421]
[1723882700532,3.06939144,2599.8,2599.3,3.84709]
[1723882700769,6.91587144,2599.8,2599.3,3.84709]
[1723882700975,6.91587144,2599.8,2599.3,3.83629118]
[1723882701880,8.24787144,2599.8,2599.3,3.83629118]
[1723882702085,1.05707714,2599.7,2599.3,3.83629118]
[1723882702288,0.04637418,2599.6,2599.3,3.83629118]
[1723882703049,0.04637418,2599.6,2599.3,7.68339118]
[1723882703447,0.04637418,2599.6,2599.4,3.84701]
[1723882703865,20.00087072,2599.8,2599.4,3.84701]
[1723882704199,0.0463647,2599.7,2599.4,3.84701]
[1723882704377,0.0463647,2599.7,2599.3,3.83629118]
[1723882704378,2.28337824,2599.7,2599.3,3.83629118]
[1723882704892,2.28337824,2599.7,2599.4,3.84698]
[1723882705773,2.28337824,2599.7,2599.3,3.83629118]
[1723882706561,2.28337824,2599.7,2599.4,3.84695]
[1723882709169,2.28337824,2599.7,2599.3,3.83629118]
[1723882710288,0.0463647,2599.7,2599.4,2.4659]
[1723882710568,0.0463647,2599.7,2599.6,7.69348]
[1723882710978,0.0463647,2599.7,2599.6,3.84674]
[1723882712815,7.46,2600.0,2599.7,7.69316]
[1723882713112,7.46,2600.0,2599.7,3.84658]
[1723882713314,10.65759146,2600.0,2599.7,3.84658]
[1723882714421,7.46,2600.0,2599.8,3.84644]
[1723882714767,7.46,2600.0,2599.7,3.8465]
[1723882718282,16.97795455,2600.1,2599.7,3.8465]
[1723882719513,18.18597201,2600.1,2599.7,3.8465]
[1723882719743,2.88206675,2600.0,2599.7,3.8465]
[1723882720435,2.88206675,2600.0,2599.5,7.69358]
[1723882720609,4.09008421,2600.0,2599.6,3.84672]
[1723882720812,0.462862,2599.9,2599.6,3.84672]
[1723882722015,4.09008421,2600.0,2599.7,3.84657]
[1723882722229,1.20801746,2600.0,2599.7,3.84657]
[1723882723713,1.20801746,2599.9,2599.7,3.84657]
[1723882724224,1.20801746,2600.0,2599.7,3.84657]
[1723882724920,1.20801746,2599.9,2599.7,3.84657]
[1723882725424,0.04635318,2599.8,2599.7,3.84657]
[1723882729104,0.04635318,2599.8,2599.5,7.69356]
[1723882729341,0.04635318,2599.8,2599.6,3.84669]
[1723882733857,1.25437064,2599.8,2599.7,3.84659]
[1723882734026,0.04635318,2599.8,2599.7,3.84659]
[1723882736755,1.25437064,2599.8,2599.7,3.84659]
[1723882737349,1.25437064,2599.8,2599.6,3.84673]
[1723882738814,1.25437064,2599.8,2599.5,3.84676]
[1723882738815,1.20801746,2599.7,2599.5,3.84676]
[1723882739034,3.89327515,2599.7,2599.3,3.8471]
[1723882739253,3.89327515,2599.7,2599.3,7.6942]
[1723882739455,1.20801746,2599.6,2599.3,7.6942]
[1723882739948,0.04633569,2599.5,2599.3,7.6942]
[1723882740140,1.20801746,2599.6,2599.3,7.6942]
[1723882740327,0.04633569,2599.5,2599.3,7.6942]
[1723882741062,1.20801746,2599.4,2599.1,3.84734]
[1723882741349,1.25398046,2599.3,2599.1,3.84734]
[1723882741554,1.20767547,2599.2,2599.1,3.84734]
[1723882741947,1.25397977,2599.2,2599.1,3.84734]
[1723882742203,0.0463043,2599.2,2599.1,3.84734]
[1723882742515,1.20767547,2599.3,2599.1,3.84734]
[1723882742751,2.3524,2599.4,2599.1,3.84734]
[1723882742752,0.0463043,2599.2,2599.1,3.84734]
[1723882742955,3.56007547,2599.4,2599.1,3.84734]
[1723882743250,0.0463043,2599.2,2599.1,3.84734]
[1723882743456,3.56007547,2599.4,2599.1,3.84734]
[1723882743657,0.0463043,2599.2,2599.1,3.84734]
[1723882743955,0.04630551,2599.2,2599.1,3.84734]
[1723882744161,3.56007547,2599.4,2599.1,3.84734]
[1723882744753,1.20767547,2599.4,2599.1,3.84734]
[1723882745069,0.0463062,2599.3,2599.2,3.84733]
[1723882745466,1.20767547,2599.5,2599.2,3.84733]
[1723882746150,0.0463069,2599.4,2599.2,3.84733]
[1723882746967,0.0463069,2599.4,2599.1,7.69474]
[1723882750054,0.0463069,2599.4,2599.1,3.84734]
[1723882750392,0.0463069,2599.4,2599.1,7.69474]
[1723882751966,0.0463069,2599.4,2599.1,3.84734]
[1723882752563,0.0463069,2599.4,2599.1,7.69474]
[1723882752759,0.0463069,2599.4,2599.2,3.84733]
[1723882753297,3.56007547,2599.6,2599.2,7.69459]
[1723882753512,0.04619832,2599.3,2599.2,3.84726]
[1723882753669,3.56007547,2599.6,2599.2,3.84726]
[1723882754006,4.79600368,2599.6,2599.2,3.84726]
[1723882754159,0.04619971,2599.5,2599.2,3.84726]
[1723882755760,1.25387518,2599.5,2599.2,3.84726]
[1723882755963,1.25387518,2599.5,2599.0,3.84748]
[1723882756199,0.48422034,2599.4,2599.1,3.84737]
[1723882756691,0.04620239,2599.3,2599.1,3.84737]
[1723882757362,0.04620239,2599.3,2599.2,3.84733]
[1723882758360,3.56007547,2599.6,2599.2,3.84733]
[1723882758564,0.04620239,2599.3,2599.2,3.84733]
[1723882759110,1.20767547,2599.7,2599.3,3.84704]
[1723882759401,1.20767547,2599.7,2599.4,3.84703]
[1723882759611,2.43400085,2599.7,2599.4,3.84703]
[1723882762407,2.43400085,2599.7,2599.4,3.84695]
[1723882763680,1.20767547,2599.7,2599.4,3.84695]
[1723882763883,1.20767547,2599.7,2599.4,7.6939]
[1723882764090,1.20767547,2599.7,2599.5,3.84681]
[1723882765309,1.20767547,2599.7,2599.4,3.84695]
[1723882765671,1.20767547,2599.7,2599.4,7.69391]
[1723882766377,1.20767547,2599.7,2599.4,3.84695]
[1723882766728,1.20767547,2599.6,2599.4,3.84695]
[1723882770426,0.04621591,2599.5,2599.4,3.84695]
[1723882773120,0.04621591,2599.5,2599.2,6.22356]
[1723882773327,1.25389138,2599.5,2599.2,3.84726]
[1723882773953,1.20767547,2599.4,2599.2,3.84726]
[1723882774447,0.04622673,2599.3,2599.2,3.84726]
[1723882775238,1.20767547,2599.5,2599.2,7.69452]
[1723882775440,0.04622673,2599.3,2599.2,3.84726]
[1723882775650,2.43410861,2599.5,2599.2,3.84726]
[1723882775948,0.04622673,2599.3,2599.2,3.84726]
[1723882776157,0.04622673,2599.3,2599.2,7.69452]
[1723882776463,1.20767547,2599.5,2599.2,7.69452]
[1723882776650,0.04622673,2599.3,2599.2,7.69452]
[1723882777159,1.20767547,2599.5,2599.2,7.69452]
[1723882777468,0.04622742,2599.4,2599.2,7.69451]
[1723882777762,0.04622742,2599.4,2599.3,3.84718]
[1723882778428,1.20767547,2599.6,2599.3,3.84718]
[1723882778630,0.04622742,2599.4,2599.3,3.84718]
[1723882778832,1.20767547,2599.6,2599.3,3.84718]
[1723882779138,1.20767547,2599.5,2599.3,3.84718]
[1723882779341,0.04622742,2599.4,2599.3,3.84718]
[1723882780436,0.04622742,2599.4,2599.3,6.23448]
[1723882780960,1.20767547,2599.6,2599.3,6.23448]
[1723882781161,1.25390358,2599.5,2599.3,6.23448]
[1723882785556,1.25390358,2599.5,2599.4,7.69408]
[1723882785836,0.04622811,2599.5,2599.4,11.41935284]
[1723882786178,1.20767547,2599.9,2599.7,3.84659]
[1723882786558,1.20767547,2599.9,2599.8,3.84644]
[1723882786978,1.61083552,2600.0,2599.9,7.6926]
[1723882786979,1.20767547,2600.0,2599.9,7.6926]
[1723882787136,2.01202574,2600.3,2600.1,3.846]
[1723882787137,1.20767547,2600.3,2600.1,3.846]
[1723882787339,1.20767547,2600.4,2600.3,3.84571]
[1723882788034,1.20767547,2600.4,2600.2,3.84585]
[1723882788767,1.62272657,2600.4,2600.2,3.84585]
[1723882790479,1.20767547,2600.4,2600.2,3.84585]
[1723882791285,1.20767547,2600.5,2600.2,3.84585]
[1723882791583,2.53967547,2600.6,2600.3,3.84567]
[1723882791885,1.20767547,2600.5,2600.3,3.84567]
[1723882793181,1.332,2600.6,2600.3,3.84567]
[1723882793182,2.53967547,2600.6,2600.3,3.84567]
[1723882795065,2.53967547,2600.6,2600.3,6.13637]
[1723882796565,1.332,2600.6,2600.3,6.13637]
[1723882796762,2.53967547,2600.6,2600.3,6.13637]
[1723882798065,1.332,2600.6,2600.3,6.13637]
[1723882798860,1.332,2600.6,2600.4,3.84555]
[1723882800065,2.53967547,2600.8,2600.4,7.69102]
[1723882800454,0.04669041,2600.7,2600.4,7.69102]
[1723882800674,0.04669041,2600.7,2600.4,3.84547]
[1723882800876,2.53967547,2600.8,2600.4,7.69095]
[1723882801054,0.04668971,2600.6,2600.5,7.69082]
[1723882801255,2.53967547,2600.9,2600.6,3.84521]
[1723882801494,4.1372315,2600.9,2600.6,3.84521]
[1723882801892,2.8052315,2600.9,2600.7,3.84506]
[1723882802100,1.332,2600.9,2600.7,3.84506]
[1723882804160,1.332,2601.1,2600.7,3.84506]
[1723882804976,1.332,2600.9,2600.7,3.84506]
[1723882805176,1.58596755,2600.9,2600.7,3.84506]
[1723882805700,2.3592,2600.8,2600.4,3.84546]
[1723882805901,1.332,2600.7,2600.4,3.84546]
[1723882806976,1.332,2600.7,2600.6,3.84526]
[1723882808276,1.332,2600.9,2600.6,7.69042]
[1723882809995,1.332,2600.9,2600.6,7.69033]
[1723882810520,1.332,2600.9,2600.6,3.84516]
[1723882811220,1.332,2600.9,2600.6,6.13586]
[1723882811971,1.332,2600.9,2600.7,3.84499]
[1723882814783,2.3871,2600.8,2600.7,3.84499]
[1723882815124,2.75901,2600.8,2600.2,3.84576]
[1723882815325,1.332,2600.5,2600.2,3.84576]
[1723882815652,0.04678191,2600.4,2600.2,3.84576]
[1723882815972,0.04678191,2600.4,2600.3,3.84562]
[1723882816801,0.04678191,2600.4,2600.2,3.84576]
[1723882821049,0.04678191,2600.4,2600.3,3.84571]
[1723882823701,1.332,2600.7,2600.3,3.84571]
[1723882823904,0.04671253,2600.4,2600.3,3.84571]
[1723882824399,1.332,2600.5,2600.3,3.84571]
[1723882824631,0.04671253,2600.4,2600.3,3.84571]
[1723882826767,1.332,2600.7,2600.4,3.84551]
[1723882827216,2.49186855,2600.6,2600.4,3.84551]
[1723882827720,1.332,2600.7,2600.5,3.84541]
[1723882827917,2.53967547,2600.7,2600.4,3.84551]
[1723882828124,1.332,2600.7,2600.4,3.84551]
[1723882828339,2.53967547,2600.7,2600.4,7.69102]
[1723882828851,2.53967547,2600.7,2600.4,3.84551]
[1723882829057,2.53967547,2600.7,2600.4,3.84548]
[1723882830357,2.53967547,2600.7,2600.4,3.84547]
[1723882830560,0.04666103,2600.6,2600.4,7.69094]
[1723882831164,1.2543365,2600.6,2600.4,7.69094]
[1723882831527,1.2543365,2600.6,2600.5,3.84541]
[1723882831755,0.04666103,2600.6,2600.5,7.69082]
[1723882836062,1.20767547,2600.8,2600.7,3.84511]
[1723882837443,1.61083552,2600.8,2600.7,3.84511]
[1723882838676,1.20640929,2600.8,2600.7,3.84511]
[1723882839181,1.20641903,2600.8,2600.7,3.84511]
[1723882843072,1.61083552,2600.9,2600.7,3.84511]
[1723882843277,1.332,2601.0,2600.7,3.84511]
[1723882843278,1.20644146,2600.8,2600.7,3.84511]
[1723882843476,1.61083552,2601.0,2600.7,3.84511]
[1723882843477,1.20644146,2600.9,2600.8,3.84497]
[1723882843684,2.01068356,2601.1,2601.0,3.84467]
[1723882843685,1.20644146,2601.1,2601.0,3.84467]
[1723882843925,1.20644146,2601.2,2601.0,3.84467]
[1723882844218,1.61083552,2601.3,2601.2,3.84437]
[1723882844427,1.20633903,2601.5,2601.2,5.17637]
[1723882844591,7.46,2601.6,2601.2,5.17637]
[1723882844592,7.46,2601.6,2601.5,3.84393]
[1723882844937,7.46,2601.6,2601.5,7.68786]
[1723882845502,7.50688906,2601.6,2601.5,7.68786]
[1723882846494,7.50688906,2601.6,2601.5,3.84393]
[1723882849194,0.04688906,2601.6,2601.5,3.84393]
[1723882849917,0.04688906,2601.6,2601.5,7.68786]
[1723882850343,4.82133903,2602.0,2601.7,3.84354]
[1723882850487,2.53833903,2602.0,2601.7,3.84354]
[1723882850944,1.332,2602.0,2601.7,3.84354]
[1723882852423,1.332,2602.0,2601.7,7.68709]
[1723882852908,1.332,2602.0,2601.7,3.84354]
[1723882855555,1.332,2602.0,2601.7,7.6871]
[1723882855735,1.332,2602.0,2601.7,3.84354]
[1723882856051,4.82133903,2602.2,2601.7,7.6871]
[1723882856555,4.82133903,2602.2,2601.8,3.84348]
[1723882856865,1.332,2602.2,2601.8,3.84348]
[1723882859558,1.332,2602.2,2601.7,3.84354]
[1723882860355,0.04721368,2602.1,2601.7,3.84354]
[1723882863251,2.41781368,2602.1,2601.7,3.84354]
[1723882865440,2.41781368,2602.1,2601.5,3.84384]
[1723882865441,1.332,2601.8,2601.5,3.84384]
[1723882865752,3.29772095,2602.1,2601.3,3.84413]
[1723882865753,1.332,2601.6,2601.3,3.84413]
[1723882865960,1.332,2601.6,2601.3,7.68828]
[1723882866125,0.04722787,2601.5,2601.3,7.68828]
[1723882866328,0.04722787,2601.5,2601.3,7.68827]
[1723882866537,0.04722787,2601.5,2601.3,3.84413]
[1723882866714,0.04722787,2601.5,2601.3,7.68828]
[1723882868057,0.04722787,2601.5,2601.4,3.84408]
[1723882868362,1.332,2601.8,2601.4,3.84408]
[1723882868556,0.04719737,2601.5,2601.4,3.84408]
[1723882868716,1.332,2601.8,2601.4,3.84408]
[1723882868936,0.04719828,2601.5,2601.4,3.84408]
[1723882869125,1.332,2601.8,2601.4,3.84408]
[1723882869330,0.04719828,2601.5,2601.4,3.84408]
[1723882869645,1.332,2601.8,2601.4,3.84408]
[1723882869829,0.04719828,2601.5,2601.4,3.84408]
[1723882870030,1.332,2601.8,2601.4,3.84408]
[1723882870873,0.04719966,2601.7,2601.4,3.84408]
[1723882871035,1.332,2601.8,2601.4,3.84408]
[1723882871371,0.04719966,2601.7,2601.4,3.84408]
[1723882871870,1.332,2601.8,2601.4,3.84408]
[1723882872073,0.04719897,2601.6,2601.5,3.84393]
[1723882872370,1.332,2601.8,2601.4,3.84407]
[1723882872668,0.04719897,2601.6,2601.4,3.84407]
[1723882872867,1.332,2601.8,2601.4,3.84407]
[1723882873058,0.04719966,2601.7,2601.4,3.84407]
[1723882873260,1.332,2601.8,2601.4,3.84407]
[1723882873560,0.04719897,2601.6,2601.4,3.84407]
[1723882873876,1.332,2601.8,2601.4,3.84407]
[1723882874190,0.04719828,2601.5,2601.4,3.84407]
[1723882874483,1.332,2601.8,2601.4,3.84407]
[1723882874774,0.04719828,2601.5,2601.4,3.84407]
[1723882875379,1.332,2601.8,2601.4,3.84407]
[1723882875585,0.04719828,2601.5,2601.4,3.84407]
[1723882875781,1.332,2601.8,2601.4,3.84407]
[1723882875933,0.04719828,2601.5,2601.4,3.84407]
[1723882876633,1.332,2601.8,2601.4,3.84407]
[1723882876882,1.332,2601.8,2601.3,3.84408]
[1723882877034,0.04719966,2601.7,2601.5,3.84393]
[1723882877434,1.332,2601.8,2601.5,3.84393]
[1723882877889,0.04719966,2601.7,2601.5,3.84393]
[1723882878048,1.332,2601.8,2601.5,3.84393]
[1723882878553,0.04719966,2601.7,2601.5,3.84393]
[1723882878760,1.332,2601.8,2601.5,3.84393]
[1723882878963,0.04719897,2601.6,2601.5,3.84393]
[1723882879480,1.332,2601.8,2601.5,3.84393]
[1723882880239,0.04719966,2601.7,2601.5,3.84393]
[1723882880552,1.332,2601.8,2601.5,3.84393]
[1723882880752,0.04719897,2601.6,2601.5,3.84393]
[1723882880952,1.332,2601.8,2601.5,3.84393]
[1723882881181,0.04719897,2601.6,2601.5,3.84393]
[1723882881478,1.332,2601.8,2601.5,3.84393]
[1723882881669,0.04719897,2601.6,2601.5,3.84393]
[1723882882344,1.332,2601.8,2601.5,3.84393]
[1723882882539,0.04719897,2601.6,2601.5,3.84393]
[1723882882757,1.332,2601.8,2601.5,3.84393]
[1723882882958,0.04719897,2601.6,2601.5,3.84393]
[1723882883181,1.332,2601.8,2601.5,3.84393]
[1723882883643,0.0472322,2601.7,2601.5,3.84393]
[1723882883982,1.332,2601.8,2601.5,3.84393]
[1723882884181,0.04723151,2601.6,2601.5,3.84393]
[1723882884343,2.2072129,2601.8,2601.5,3.84393]
[1723882884977,0.04723402,2601.7,2601.5,3.84393]
[1723882885391,1.332,2601.8,2601.5,3.84393]
[1723882885867,0.04723402,2601.7,2601.5,3.84393]
[1723882886065,1.332,2601.8,2601.5,3.84393]
[1723882886293,2.53833903,2601.8,2601.5,3.84393]
[1723882886597,0.04723402,2601.7,2601.5,3.84393]
[1723882886959,3.73571904,2601.8,2601.5,3.84393]
[1723882887163,0.04723333,2601.6,2601.5,3.84393]
[1723882887361,3.73571904,2601.8,2601.5,3.84393]
[1723882887671,0.04723333,2601.6,2601.5,3.84393]
[1723882887998,0.04723333,2601.6,2601.5,3.84385]
[1723882888150,2.53833903,2601.8,2601.5,7.68771]
[1723882888357,2.53833903,2601.8,2601.5,3.84385]
[1723882888358,0.04723333,2601.6,2601.5,3.84385]
[1723882888567,1.20633903,2601.7,2601.5,3.84385]
[1723882888791,0.04723333,2601.6,2601.5,3.84385]
[1723882889379,1.25357236,2601.6,2601.5,3.84385]
[1723882889771,0.04723333,2601.6,2601.5,3.84385]
[1723882889969,1.25357236,2601.6,2601.3,7.68821]
[1723882890218,1.25357236,2601.6,2601.3,3.84408]
[1723882890219,1.20901659,2601.4,2601.3,3.84408]
[1723882890367,1.61083552,2601.5,2601.4,3.84408]
[1723882890773,2.75671276,2601.5,2600.9,3.0]
[1723882891026,1.20923375,2601.1,2600.9,3.84474]
[1723882891310,1.20923375,2601.0,2600.9,3.84474]
[1723882891513,1.20923375,2601.1,2600.9,3.84474]
[1723882891697,1.20923375,2601.1,2601.0,3.84467]
[1723882892707,1.20923375,2601.2,2601.1,3.84452]
[1723882892872,1.20824502,2601.3,2601.1,3.84452]
[1723882893583,1.20824502,2601.4,2601.1,3.84452]
[1723882893987,1.20824502,2601.3,2601.2,3.84428]
[1723882894216,1.61231166,2601.4,2601.2,3.84428]
[1723882894217,1.20824502,2601.4,2601.2,3.84428]
[1723882894936,1.20824502,2601.4,2601.1,3.84452]
[1723882895226,1.20824502,2601.3,2601.1,3.84452]
[1723882895378,3.19887552,2601.4,2601.1,3.84452]
[1723882895780,1.20824502,2601.3,2601.1,3.84452]
[1723882896208,3.19887552,2601.4,2601.1,3.84452]
[1723882897307,2.54024502,2601.4,2601.1,3.84452]
[1723882898719,2.54024502,2601.4,2601.1,3.84444]
[1723882900397,2.54024502,2601.4,2601.1,7.68888]
[1723882900798,1.20824502,2601.4,2601.2,3.84434]
[1723882900981,1.20824502,2601.4,2601.2,6.32344]
[1723882901617,1.20824502,2601.5,2601.2,6.32344]
[1723882902494,1.20824502,2601.5,2601.3,3.84413]
[1723882902692,1.20824502,2601.6,2601.5,3.84393]
[1723882903078,1.20824502,2601.7,2601.5,3.84393]
[1723882904238,1.20824502,2601.6,2601.5,3.84393]
[1723882905527,1.25534292,2601.6,2601.5,3.84393]
[1723882907489,1.25534292,2601.6,2601.4,3.84408]
[1723882907900,1.20824502,2601.5,2601.4,3.84408]
[1723882908306,1.25534226,2601.5,2601.4,3.84408]
[1723882909137,0.04709724,2601.5,2601.4,3.84408]
[1723882914101,0.04709724,2601.5,2601.4,7.68816]
[1723882914499,1.20824502,2601.7,2601.5,3.84389]
[1723882914693,1.20824502,2601.6,2601.5,3.84389]
[1723882915238,1.61231166,2601.8,2601.5,3.84389]
[1723882915239,1.20824502,2601.7,2601.5,3.84389]
[1723882916645,1.61231166,2601.6,2601.4,3.844]
[1723882916839,1.20816178,2601.5,2601.4,3.844]
[1723882917658,1.20816178,2601.6,2601.4,7.688]
[1723882917939,1.20816178,2601.6,2601.4,3.844]
[1723882918444,1.20816178,2601.6,2601.4,7.688]
[1723882918806,1.20816178,2601.6,2601.4,3.844]
[1723882920068,1.20816178,2601.6,2601.4,7.688]
[1723882920430,0.047121,2601.5,2601.4,7.688]
[1723882920781,0.047121,2601.5,2601.4,3.844]
[1723882922571,1.20816178,2601.7,2601.4,3.844]
[1723882922728,0.04712009,2601.5,2601.4,3.844]
[1723882922928,1.20816178,2601.7,2601.4,3.844]
[1723882923155,0.04712078,2601.6,2601.5,3.8439]
[1723882923480,1.25528256,2601.6,2601.5,3.8439]
[1723882928074,0.04712078,2601.6,2601.5,3.8439]
[1723882928378,1.65943244,2601.6,2601.5,3.8439]
[1723882931042,0.04712078,2601.6,2601.5,3.8439]
[1723882931780,1.6584414,2601.6,2601.5,3.8439]
[1723882931982,0.04712078,2601.6,2601.5,3.8439]
[1723882932585,1.65843084,2601.6,2601.5,3.8439]
[1723882932751,0.04712078,2601.6,2601.5,3.8439]
[1723882933079,1.25564408,2601.6,2601.5,3.8439]
[1723882933377,1.25562527,2601.6,2601.5,3.8439]
[1723882936636,1.65842739,2601.6,2601.5,3.8439]
[1723882942584,0.04712078,2601.6,2601.5,10.02283]
[1723882942803,0.04712078,2601.6,2601.5,20.20899175]
[1723882942966,0.04712078,2601.6,2601.5,21.01691948]
[1723882943296,7.46,2602.1,2602.0,6.17819]
[1723882943495,1.20981943,2602.2,2602.1,3.84304]
[1723882943701,19.62,2602.3,2602.2,3.8429]
[1723882944506,20.82889332,2602.3,2602.2,3.8429]
[1723882945231,19.62,2602.3,2602.1,3.84296]
[1723882945398,19.62,2602.3,2601.0,5.86378142]
[1723882945399,2.3738,2602.1,2601.3,0.80751779]
[1723882945702,2.54061214,2601.8,2601.5,3.84385]
[1723882945905,1.20861214,2601.7,2601.5,3.84385]
[1723882946904,1.20861214,2601.7,2601.6,3.84378]
[1723882947071,2.01412163,2601.9,2601.7,3.84364]
[1723882947072,1.20861214,2601.9,2601.7,3.84364]
[1723882947271,1.20861214,2601.9,2601.8,3.84349]
[1723882948094,2.94330661,2602.0,2601.8,3.84349]
[1723882949096,1.20840423,2601.9,2601.8,3.84349]
[1723882949299,2.94330661,2602.0,2601.8,3.84349]
[1723882949508,1.20832525,2601.9,2601.8,3.84349]
[1723882950514,1.25550958,2601.9,2601.8,3.84349]
[1723882953709,0.04718433,2601.9,2601.8,3.84349]
[1723882954212,1.25527829,2601.9,2601.8,3.84349]
[1723882957526,0.04718433,2601.9,2601.8,3.84349]
[1723882958034,1.25483394,2601.9,2601.8,3.84349]
[1723882960034,1.25483394,2601.9,2601.7,7.68718]
[1723882961422,1.25483394,2601.9,2601.8,3.84349]
[1723882961582,0.04718433,2601.9,2601.8,3.84349]
[1723882962025,1.25483394,2601.9,2601.8,3.84349]
[1723882962223,0.04718433,2601.9,2601.8,3.84349]
[1723882964394,1.25483394,2601.9,2601.8,3.84349]
[1723882966522,0.04718433,2601.9,2601.8,3.84349]
[1723882969933,1.25483394,2601.9,2601.8,3.84349]
[1723882970268,0.04718433,2601.9,2601.8,3.84349]
[1723882971618,1.25483394,2601.9,2601.8,3.84349]
[1723882984561,1.25483394,2601.9,2601.8,10.13528]
[1723882984763,0.04718433,2601.9,2601.8,10.13528]
[1723882985844,1.25483394,2601.9,2601.8,10.13528]
[1723882986036,0.04718433,2601.9,2601.8,10.13528]
[1723882989106,1.25483394,2601.9,2601.8,10.13528]
[1723882989763,0.04718433,2601.9,2601.8,10.13528]
[1723882990574,1.25483394,2601.9,2601.8,10.13528]
[1723882990769,0.04718433,2601.9,2601.8,10.13528]
[1723882992600,1.25483394,2601.9,2601.8,10.13528]
[1723882992801,0.04718433,2601.9,2601.8,10.13528]
[1723882996323,1.25483394,2601.9,2601.8,10.13528]
[1723882996700,1.25483394,2601.9,2601.8,7.68698]
[1723883001650,0.04718433,2601.9,2601.8,7.68698]
[1723883002814,0.04718433,2601.9,2601.8,9.96638]
[1723883005502,1.20764961,2602.1,2602.0,3.84319]
[1723883007417,1.20764961,2602.1,2602.0,7.68638]
[1723883007611,1.20764961,2602.2,2602.1,7.68608]
[1723883010364,1.20764961,2602.4,2602.3,7.6855]
[1723883010507,1.22004819,2602.6,2602.5,9.9643]
[1723883010715,0.01239858,2602.6,2602.5,9.9643]
[1723883017553,0.01239858,2602.6,2602.5,7.6849]
[1723883020644,0.01239858,2602.6,2602.5,7.76173522]
[1723883023450,0.01239858,2602.6,2602.5,10.04493522]
[1723883023771,0.01239858,2602.6,2602.5,13.81055]
[1723883025582,0.0585841,2602.6,2602.5,13.81055]
[1723883028184,0.01239858,2602.6,2602.5,13.81055]
[1723883030844,0.01239858,2602.6,2602.5,18.14255]
[1723883038017,0.01239858,2602.6,2602.5,16.81055]
[1723883040534,0.01239858,2602.6,2602.5,18.14255]
[1723883044617,0.01239858,2602.6,2602.5,16.81055]
[1723883046631,0.01239858,2602.6,2602.5,18.14255]
[1723883046844,0.01239858,2602.6,2602.5,22.535]
[1723883047046,0.01239858,2602.6,2602.5,13.5181]
[1723883047360,0.01239858,2602.6,2602.5,12.9681]
[1723883050121,0.01239858,2602.6,2602.5,16.81055]
[1723883051420,0.01239858,2602.6,2602.5,17.36055]
[1723883054555,0.01239858,2602.6,2602.5,15.07735]
[1723883055568,0.05719501,2602.6,2602.5,14.52735]
[1723883057643,2.46909501,2602.6,2602.5,6.84245]
[1723883058577,2.46909501,2602.6,2602.5,10.6849]
[1723883059344,2.45669643,2602.6,2602.5,10.6849]
[1723883059544,2.45669643,2602.6,2602.5,6.84245]
[1723883059944,2.45669643,2602.6,2602.5,10.6849]
[1723883060340,3.66434604,2602.6,2602.5,3.84245]
[1723883061564,2.45669643,2602.6,2602.5,7.6849]
[1723883061762,2.45669643,2602.6,2602.5,3.84245]
[1723883061933,2.45669643,2602.6,2602.5,7.6849]
[1723883062740,2.45669643,2602.6,2602.5,3.84245]
[1723883062950,2.45669643,2602.6,2602.5,7.6849]
[1723883065588,2.45669643,2602.6,2602.5,3.84245]
[1723883065740,2.45669643,2602.6,2602.5,7.6849]
[1723883070482,3.66434604,2602.6,2602.5,3.84245]